[Event "1st FIDE Olympiad DIS 2023"]
[Site "Belgrade"]
[Date "2023.02.03"]
[Round "5.11"]
[White "Dorner, Matthias"]
[Black "Rakhatbekov, Tilegen"]
[Result "1-0"]
[ECO "A48"]
[WhiteElo "2180"]
[BlackElo "1489"]
[Annotator "TA"]
[PlyCount "93"]
[EventDate "2023.01.30"]
[EventType "team-tourn"]
[EventCountry "SRB"]
[SourceTitle "playchess.com"]
[Source "ChessBase"]
[SourceQuality "1"]
[WhiteTeam "Germany"]
[BlackTeam "Kyrgyzstan"]
[WhiteTeamCountry "GER"]
[BlackTeamCountry "KGZ"]
[TimeControl "40/5400+30:1800+30"]

{[%evp 13,92,0,7,-16,-10,-5,-5,-17,0,0,0,-14,-14,-10,16,10,16,-4,7,10,58,10,41,41,31,40,58,0,83,75,63,5,12,0,0,-9,62,31,51,31,43,46,38,-8,-2,-8,-16,0,43,52,79,56,54,68,70,45,45,45,45,46,45,45,70,70,143,70,497,498,479,467,460,404,1659,412,6395,6710,29982,29983,29986,29985,29999]} 1. d4 {[%emt 0:00:04]} Nf6 {[%emt 0:00:04]} 2. c3 {[%emt 0:00:07]} g6 {[%emt 0:00:36]} 3. Bf4 {[%emt 0:00:30]} Bg7 {[%emt 0:00:48]} 4. Nf3 {[%emt 0:00:27]} O-O {[%emt 0:00:57]} 5. h3 {[%emt 0:00:29]} d6 {[%emt 0:00:43]} 6. e3 {[%emt 0:00:33]} Nbd7 {[%emt 0:02:05]} 7. Nbd2 {[%emt 0:00:22]} Re8 {[%emt 0:00:14] 7...b6 is more advanced technology.} 8. Nc4 {[%emt 0:01:15] A48: 1 d4 Nf6 2 Nf3 g6: Torre, London and Colle Systems.} b6 {[%emt 0:03:25]} 9. Be2 {[%emt 0:00:52]} Bb7 {[%emt 0:01:24]} 10. O-O {[%emt 0:00:08] The position is equal.} Nd5 {[%emt 0:01:51] [#]} 11. Bg3 $146 {[%emt 0:01:36]} ({Predecessor:} 11. Bh2 e5 12. a4 e4 13. Nfd2 Rb8 14. a5 b5 15. a6 Ba8 16. Na5 f5 17. Qb3 {0-1 Kubicek,A (2295)-Gauglitz,G (2420) Berlin East AdW 5th 1988 (5)}) 11... e5 {[%emt 0:00:47]} 12. Qb3 {[%emt 0:00:57]} exd4 {[%emt 0:02:39]} 13. cxd4 {[%emt 0:00:16]} N5f6 {[%emt 0:00:29]} 14. Rac1 {[%emt 0:01:38]} Bd5 {[%emt 0:01:36]} 15. a4 {[%emt 0:01:26]} a6 {[%emt 0:00:54]} 16. Qc2 {[%emt 0:00:38]} Bb7 {[%emt 0:03:47]} (16... Ne4 $11 {is more appropriate.}) 17. Nfd2 {[%emt 0:04:20]} (17. Ncd2 $14 {was preferrable.}) 17... Ne4 {[%emt 0:03:48]} 18. Nxe4 {[%emt 0:00:27]} Bxe4 {[%emt 0:00:13]} 19. Qd1 {[%emt 0:00:21]} Bb7 {[%emt 0:00:41] [#]} 20. Bxd6 {[%emt 0:03:35]} b5 {[%emt 0:05:38]} (20... cxd6 $11 {keeps the balance.} 21. Nxd6 Nf6 22. Nxe8 (22. Nxb7 Qd7 $15) 22... Qxe8) 21. Na5 $1 $16 {[%emt 0:01:10][%csl LRb5,LRb7,LRc7]} Bxg2 {[%emt 0:00:17]} 22. Kxg2 {[%emt 0:00:16]} (22. Bxc7 $14 Qg5 23. Bf4) 22... cxd6 $11 {[%emt 0:00:04]} 23. Nc6 {[%emt 0:01:49]} Qg5+ {[%emt 0:01:01]} 24. Kh2 {[%emt 0:00:00]} Rac8 {[%emt 0:00:39]} (24... bxa4 $11 25. Qxa4 Nf6) 25. Bf3 {[%emt 0:00:06]} Qf6 {[%emt 0:00:49][%cal Od6d5]} 26. Bg2 {[%emt 0:01:23] Inhibits d5.} d5 $1 {[%emt 0:00:45]} 27. axb5 {[%emt 0:01:23]} axb5 {[%emt 0:00:55]} 28. Na5 {[%emt 0:04:12]} (28. Na7 $14 Rxc1 29. Qxc1) 28... Bf8 {[%emt 0:01:11]} 29. Qf3 {[%emt 0:01:12]} Qd6+ {[%emt 0:03:36]} 30. Kg1 {[%emt 0:00:14]} Rxc1 {[%emt 0:01:05]} 31. Rxc1 {[%emt 0:00:03]} Qb4 {[%emt 0:06:52]} 32. Rc7 {[%emt 0:02:44]} Qxa5 {[%emt 0:01:30]} 33. Rxd7 $40 {[%emt 0:00:06][%mdl 128] Black needs to defend precisely.} Re7 {[%emt 0:00:05]} 34. Rxe7 {[%emt 0:00:37]} Bxe7 {[%emt 0:00:06]} 35. Qxd5 $14 {[%emt 0:00:12][%mdl 4096] Endgame KQB-KQB} Qa1+ {[%emt 0:00:19]} 36. Bf1 {[%emt 0:00:16] Active counter play!} Qxb2 {[%emt 0:00:18]} 37. Qxb5 {[%emt 0:00:18]} (37. Bxb5 $2 {is the wrong capture.} Bh4 38. Kh1 Qxf2 39. Qa8+ Kg7 $19) 37... Qc2 {[%emt 0:01:14]} 38. Bc4 {[%emt 0:00:40] aiming for Qe8+.} Kg7 {[%emt 0:06:27] [#]} ({Better is} 38... Qf5 $14) 39. Qd5 {[%emt 0:01:16]} (39. Qe5+ $1 $16 Kg8 40. Qxe7 Qxc4 41. Qe8+ Kg7 42. Qe5+ Kf8 43. d5 Qc1+ 44. Kg2) 39... f5 $2 {[%emt 0:00:31][%mdl 8192] [#] Black cannot hold the game after this.} (39... Qf5 $14) 40. Qf7+ $1 $18 {[%emt 0:02:11]} ({Less strong is} 40. Bb3 Qc7 $16) 40... Kh6 {[%emt 0:00:02] Threatens to win with ...Bh4.} 41. Qxe7 {[%emt 0:30:23] White threatens Qf8+ and mate.} Qxc4 {[%emt 0:30:05] KQ-KQ} 42. Qe5 {[%emt 0:00:19] d5 is the strong threat.} Qd3 {[%emt 0:00:51]} (42... Qc1+ $142 43. Kg2 Qc3) 43. Kg2 {[%emt 0:00:54]} (43. d5 $142 Qb1+ 44. Kg2) 43... g5 {[%emt 0:05:07]} (43... Qc3 $142 44. Qc5 Qa1 45. Qf8+ Kh5) 44. d5 {[%emt 0:04:47][%cal Bd4d5,Bd5d6][%mdl 32] White wants to mate with d6.} Kh5 {[%emt 0:00:07]} 45. d6 {[%emt 0:01:32] White mates.} h6 {[%emt 0:01:01]} 46. Qe6 {[%emt 0:01:01]} Kh4 {[%emt 0:03:27]} 47. Qxh6# {[%emt 0:00:08] Weighted Error Value: White=0.31/Black=0.43} 1-0

[Event "1st FIDE Olympiad DIS 2023"]
[Site "Belgrade"]
[Date "2023.02.03"]
[Round "5.11"]
[White "Interian Rodriguez, Alberto D."]
[Black "Campos, Eugenio"]
[Result "0-1"]
[ECO "B53"]
[WhiteElo "2082"]
[BlackElo "2227"]
[Annotator "TA"]
[PlyCount "92"]
[EventDate "2023.01.30"]
[EventType "team-tourn"]
[EventCountry "SRB"]
[SourceTitle "playchess.com"]
[Source "ChessBase"]
[SourceQuality "1"]
[WhiteTeam "Cuba"]
[BlackTeam "IPCA"]
[WhiteTeamCountry "CUB"]
[BlackTeamCountry "ANG"]
[TimeControl "40/5400+30:1800+30"]

{[%evp 9,92,33,32,31,32,25,24,26,16,0,0,-4,30,30,35,25,18,0,10,-8,0,0,0,0,0,-29,-33,-110,-106,-100,-104,-99,0,0,0,-25,0,-4,-11,-7,0,0,0,-1,-8,-36,-41,-45,-55,-48,-56,-53,-50,-190,-175,-185,-166,-181,-181,-201,-185,-209,-182,-307,-231,-579,-571,-669,0,-416,0,-687,-676,-977,-888,-1377,-637,-598,-584,-2363,-2230,-29979,-29979,-29972,-29973]} 1. e4 {[%emt 0:00:01]} c5 {[%emt 0:00:10]} 2. Nf3 {[%emt 0:00:02]} d6 {[%emt 0:00:19]} 3. d4 {[%emt 0:00:01]} Nf6 {[%emt 0:00:13]} 4. dxc5 {[%emt 0:02:40]} Qa5+ {[%emt 0:00:28]} 5. c3 {[%emt 0:00:57]} Qxc5 {[%emt 0:00:46]} 6. Bd3 {[%emt 0:00:05] B53: Sicilian: 2...d6: Lines with Qxd4.} g6 {[%emt 0:00:11]} 7. h3 {[%emt 0:00:33]} Bg7 {[%emt 0:00:06]} 8. O-O {[%emt 0:00:16] White has an edge.} O-O {[%emt 0:00:19]} 9. Nbd2 {[%emt 0:02:25]} Nbd7 {[%emt 0:00:25]} 10. Re1 {[%emt 0:05:35] [#]} Ne5 $146 {[%emt 0:05:24]} ({Predecessor:} 10... b6 11. Nb3 Qc7 12. Bg5 Bb7 13. Qd2 Rad8 14. Rad1 Nc5 15. Nxc5 dxc5 16. Qe3 c4 {1-0 Damljanovic,B (2560)-Nijboer,F (2455) Ibercaja op Zaragoza 1991 (9)}) 11. Nxe5 {[%emt 0:03:32]} dxe5 {[%emt 0:00:08]} 12. Nb3 {[%emt 0:01:47]} Qc7 {[%emt 0:00:34]} 13. Qf3 {[%emt 0:00:36]} Rd8 {[%emt 0:01:21]} 14. Bg5 {[%emt 0:01:28]} Be6 {[%emt 0:00:56]} 15. Bc2 {[%emt 0:04:20]} b5 {[%emt 0:06:29]} 16. Be3 {[%emt 0:06:30]} Nd7 {[%emt 0:00:24] Inhibits Nc5.} 17. Rac1 {[%emt 0:11:21]} a5 {[%emt 0:00:48][%cal Ba7a5,Ba5a4][%mdl 32]} 18. Qg3 {[%emt 0:03:47]} (18. a3 $15) 18... a4 $17 {[%emt 0:02:00]} 19. Nd4 {[%emt 0:00:02]} Bxa2 {[%emt 0:04:11]} (19... Bc4 20. b3 axb3 21. axb3 $14) 20. Nxb5 {[%emt 0:03:06]} Qc6 {[%emt 0:05:42]} (20... Qb7 $17 21. Ra1 Bc4) 21. Ra1 $11 {[%emt 0:01:59]} Bb3 {[%emt 0:03:42]} 22. Bxb3 {[%emt 0:06:44]} (22. Na7 $5 {[%cal Ra7c6]} Qb7 23. Bxb3 axb3 24. Ra4 $15) 22... axb3 {[%emt 0:00:29]} 23. Na7 {[%emt 0:00:02]} (23. Rxa8 Rxa8 24. Na3 Qxe4 $17) 23... Qb7 {[%emt 0:01:07] Strongly threatening ...Nb6.} ({Resist} 23... Qxe4 24. Bb6 $16) 24. Ra4 {[%emt 0:03:35]} Rdb8 {[%emt 0:04:30]} 25. Rea1 {[%emt 0:03:35]} e6 {[%emt 0:04:20]} 26. Qf3 {[%emt 0:12:28]} (26. Rb4 $5 Qc7 $8 27. Rba4 $11) 26... Bf8 {[%emt 0:02:20]} 27. Qe2 {[%emt 0:01:22]} Nc5 {[%emt 0:02:36]} 28. Ra5 {[%emt 0:02:19]} ({Wrong is} 28. Bxc5 $2 Bxc5 $19) 28... Qxe4 {[%emt 0:02:21] [#] White must now prevent ...Qc2.} 29. Kf1 {[%emt 0:12:38]} Nd7 {[%emt 0:06:03]} 30. f3 {[%emt 0:01:50]} Qb7 {[%emt 0:01:17]} 31. Nb5 {[%emt 0:00:33] Black keeps a firm grip on the game.} ({Better is} 31. Bf2 $15) 31... Rxa5 $19 {[%emt 0:01:03]} 32. Rxa5 {[%emt 0:00:02]} Ra8 {[%emt 0:00:26]} 33. Rxa8 {[%emt 0:01:48]} Qxa8 {[%emt 0:00:06]} 34. Qd1 {[%emt 0:00:07] Against Qa1} Nc5 {[%emt 0:13:24] ...Qa2 would be deadly.} 35. Na3 {[%emt 0:00:01]} e4 {[%emt 0:02:07]} 36. f4 {[%emt 0:03:05]} (36. fxe4 {is a better defense.} Nxe4 37. Qxb3) 36... Qb8 {[%emt 0:04:03] [#] Threatens to win with ...Nd3.} 37. c4 $2 {[%emt 0:00:37]} (37. Nc4) 37... Qb4 {[%emt 0:01:43] ...Nd3 is the strong threat.} 38. Bd2 {[%emt 0:04:54]} Qb8 {[%emt 0:01:20]} 39. Be3 $1 {[%emt 0:01:16]} Qb4 {[%emt 0:03:05]} (39... Nd3 $142 40. Nb5 e5 41. fxe5 Qxe5) 40. Bd2 $1 {[%emt 0:00:02]} Qa4 {[%emt 0:00:28] aiming for ...Nd3.} 41. Qe2 {[%emt 0:31:33]} Bg7 {[%emt 0:33:57]} 42. Qe3 {[%emt 0:00:49]} Nd3 {[%emt 0:05:40]} (42... Bxb2 $142 43. f5 Bxa3) 43. Qxe4 {[%emt 0:00:28]} Nxb2 {[%emt 0:00:23]} 44. Qb7 {[%emt 0:01:03]} Qxa3 {[%emt 0:01:30]} 45. Bb4 {[%emt 0:00:07]} Qa1+ {[%emt 0:00:20]} 46. Ke2 {[%emt 0:00:02]} Qd1+ {[%emt 0:00:35] Weighted Error Value: White=0.65/Black=0.36} ({Don't play} 46... Nxc4 47. Qc8+) 0-1

[Event "1st FIDE Olympiad DIS 2023"]
[Site "Belgrade"]
[Date "2023.02.03"]
[Round "5.12"]
[White "Andriienko, Artom"]
[Black "Batista Rivera, Idalis"]
[Result "1-0"]
[ECO "D47"]
[WhiteElo "1693"]
[BlackElo "1775"]
[Annotator "NA COMBH"]
[PlyCount "85"]
[EventDate "2023.01.30"]
[EventType "team-tourn"]
[EventCountry "SRB"]
[SourceTitle "playchess.com"]
[Source "ChessBase"]
[SourceQuality "1"]
[WhiteTeam "IPCA"]
[BlackTeam "Cuba"]
[WhiteTeamCountry "UKR"]
[BlackTeamCountry "CUB"]
[TimeControl "40/5400+30:1800+30"]

1. d4 {[%emt 0:00:07]} d5 {[%emt 0:00:07]} 2. c4 {[%emt 0:00:06]} c6 {[%emt 0:00:06]} 3. e3 {[%emt 0:00:41]} Nf6 {[%emt 0:00:30]} 4. Nc3 {[%emt 0:00:23]} e6 {[%emt 0:01:49]} 5. Nf3 {[%emt 0:00:28]} Nbd7 {[%emt 0:00:30]} 6. Bd3 {[%emt 0:01:45]} dxc4 {[%emt 0:00:54]} 7. Bxc4 {[%emt 0:00:06]} b5 {[%emt 0:02:49]} 8. Bd3 {[%emt 0:01:24]} Bb7 {[%emt 0:01:56]} 9. O-O {[%emt 0:04:24]} Be7 {[%emt 0:06:58]} 10. e4 {[%emt 0:05:24]} a6 {[%emt 0:06:11]} 11. e5 {[%emt 0:01:28]} Nd5 {[%emt 0:00:28]} 12. Ne4 {[%emt 0:00:04]} h6 {[%emt 0:04:53]} 13. a4 {[%emt 0:11:10]} Qc7 {[%emt 0:18:51]} 14. Qe2 {[%emt 0:04:38]} bxa4 {[%emt 0:06:30]} 15. Bd2 {[%emt 0:04:32]} Qb6 {[%emt 0:04:44]} 16. Rxa4 {[%emt 0:09:24]} a5 {[%emt 0:03:19]} 17. Nd6+ {[%emt 0:24:36]} Bxd6 {[%emt 0:03:13]} 18. exd6 {[%emt 0:00:46]} O-O {[%emt 0:00:36]} 19. Ne5 {[%emt 0:00:41]} N7f6 {[%emt 0:03:23]} 20. Nc4 {[%emt 0:18:55]} Qxd4 {[%emt 0:16:13]} 21. Rd1 {[%emt 0:02:55]} Qa7 {[%emt 0:04:01]} 22. Nxa5 {[%emt 0:01:17]} Qb8 {[%emt 0:00:26]} 23. Rh4 {[%emt 0:01:57]} Bc8 {[%emt 0:03:56]} 24. Nxc6 {[%emt 0:02:50]} Qxd6 {[%emt 0:01:03]} 25. Nb4 {[%emt 0:00:32]} Rd8 {[%emt 0:01:59]} 26. Nxd5 {[%emt 0:00:10]} exd5 {[%emt 0:01:57]} 27. Bc3 {[%emt 0:01:00]} Ba6 {[%emt 0:00:48]} 28. Bxa6 {[%emt 0:00:38]} Rxa6 {[%emt 0:00:03]} 29. g3 {[%emt 0:00:55]} Re8 {[%emt 0:01:48]} 30. Qb5 {[%emt 0:00:19]} Rb8 {[%emt 0:01:53]} 31. Qd3 {[%emt 0:00:05]} Rab6 {[%emt 0:01:43]} 32. Rf4 {[%emt 0:00:13]} Rb3 {[%emt 0:00:42]} 33. Qc2 {[%emt 0:00:33]} Qe7 {[%emt 0:01:16]} 34. Re1 {[%emt 0:00:42]} Qd8 {[%emt 0:00:38]} 35. f3 {[%emt 0:02:05]} R3b5 {[%emt 0:00:43]} 36. Rd1 {[%emt 0:00:19]} Qb6+ {[%emt 0:00:15]} 37. Kg2 {[%emt 0:00:27]} Qe6 {[%emt 0:00:32]} 38. Qd2 {[%emt 0:00:41]} Nh7 {[%emt 0:00:57]} 39. Re1 {[%emt 0:00:12]} Rxb2 {[%emt 0:00:36]} 40. Bxb2 {[%emt 0:00:23]} Rxb2 {[%emt 0:00:24]} 41. Qxb2 {[%emt 0:30:06]} Qxe1 {[%emt 0:30:05]} 42. Rb4 {[%emt 0:00:24]} Nf6 {[%emt 0:00:00]} 43. Rb8+ {[%emt 0:00:00]} 1-0

[Event "1st FIDE Olympiad DIS 2023"]
[Site "Belgrade"]
[Date "2023.02.03"]
[Round "5.12"]
[White "Bolotov, Toktobek"]
[Black "Mekus, Manuela"]
[Result "1-0"]
[ECO "E94"]
[WhiteElo "1437"]
[BlackElo "1624"]
[Annotator "NA RC COMBH"]
[PlyCount "87"]
[EventDate "2023.01.30"]
[EventType "team-tourn"]
[EventCountry "SRB"]
[SourceTitle "playchess.com"]
[Source "ChessBase"]
[SourceQuality "1"]
[WhiteTeam "Kyrgyzstan"]
[BlackTeam "Germany"]
[WhiteTeamCountry "KGZ"]
[BlackTeamCountry "GER"]
[TimeControl "40/5400+30:1800+30"]

1. d4 {[%emt 0:00:04]} Nf6 {[%emt 0:00:09]} 2. c4 {[%emt 0:00:12]} g6 {[%emt 0:00:09]} 3. Nc3 {[%emt 0:00:46]} Bg7 {[%emt 0:00:30]} 4. e4 {[%emt 0:00:07]} d6 {[%emt 0:00:49]} 5. Be2 {[%emt 0:00:21]} O-O {[%emt 0:02:14]} 6. Nf3 {[%emt 0:00:17]} Nbd7 {[%emt 0:01:04]} 7. O-O {[%emt 0:00:08]} e5 {[%emt 0:00:58]} 8. d5 {[%emt 0:00:11]} Nc5 {[%emt 0:01:03]} 9. Qc2 {[%emt 0:00:15]} a5 {[%emt 0:00:49]} 10. Be3 {[%emt 0:00:17]} Nfd7 {[%emt 0:01:29]} 11. Ne1 {[%emt 0:00:11]} f5 {[%emt 0:02:37]} 12. f3 {[%emt 0:00:16]} f4 {[%emt 0:00:40]} 13. Bf2 {[%emt 0:00:08]} g5 {[%emt 0:03:58]} 14. a3 {[%emt 0:00:23]} a4 {[%emt 0:01:09]} 15. Nd3 {[%emt 0:00:35]} Nb3 {[%emt 0:05:13]} 16. Rab1 {[%emt 0:00:30]} Nd4 {[%emt 0:00:28]} 17. Bxd4 {[%emt 0:01:18]} exd4 {[%emt 0:00:08]} 18. Nd1 {[%emt 0:02:42]} Ne5 {[%emt 0:04:08]} 19. Nxe5 {[%emt 0:00:56]} Bxe5 {[%emt 0:04:54]} 20. Nf2 {[%emt 0:00:24]} h5 {[%emt 0:02:23]} 21. h3 {[%emt 0:00:18]} Kh8 {[%emt 0:02:00]} 22. b4 {[%emt 0:00:23]} axb3 {[%emt 0:01:27]} 23. Rxb3 {[%emt 0:00:08]} b6 {[%emt 0:00:10]} 24. Ra1 {[%emt 0:00:15]} Bd7 {[%emt 0:00:35]} 25. Qd3 {[%emt 0:00:08]} Rg8 {[%emt 0:01:03]} 26. Rb4 {[%emt 0:02:46]} Qc8 {[%emt 0:00:41]} 27. Qd1 {[%emt 0:00:35]} d3 {[%emt 0:03:37]} 28. Nxd3 {[%emt 0:00:11]} Bxa1 {[%emt 0:00:38]} 29. Qxa1+ {[%emt 0:00:01]} Rg7 {[%emt 0:02:43]} 30. e5 {[%emt 0:00:00]} Bxh3 {[%emt 0:10:06]} 31. exd6 {[%emt 0:00:20]} Bf5 {[%emt 0:02:10]} 32. Qe5 {[%emt 0:01:13]} Bxd3 {[%emt 0:01:55]} 33. Bxd3 {[%emt 0:00:07]} Rxa3 {[%emt 0:01:35]} 34. Bf5 {[%emt 0:00:31]} Qd8 {[%emt 0:06:23]} 35. d7 {[%emt 0:00:34]} Re3 {[%emt 0:00:29]} 36. Qd4 {[%emt 0:00:56]} Kg8 {[%emt 0:00:42]} 37. Be6+ {[%emt 0:00:12]} Kf8 {[%emt 0:02:28]} 38. c5 {[%emt 0:00:20]} bxc5 {[%emt 0:09:06]} 39. Qxc5+ {[%emt 0:00:22]} Re7 {[%emt 0:00:18]} 40. Rb7 {[%emt 0:01:29]} Qa8 {[%emt 0:04:43]} 41. Rxc7 {[%emt 0:30:42]} Qa1+ {[%emt 0:30:12]} 42. Kh2 {[%emt 0:00:16]} R3xe6 {[%emt 0:04:02]} 43. d8=Q+ {[%emt 0:00:46]} Kf7 {[%emt 0:00:02]} 44. dxe6+ {[%emt 0:00:46]} 1-0